bitfinex/quotes_SOLUSD_20241022
["timestamp","ask_amount","ask_price","bid_price","bid_amount"]
[1729622002383,5.9414,168.31,168.22,16.6119]
[1729622002592,5.942,168.3,168.22,27.45658488]
[1729622003367,5.9415,168.31,168.22,27.45658488]
[1729622006281,5.9415,168.31,168.22,16.6119]
[1729622006476,5.9415,168.31,168.22,27.45658488]
[1729622006789,5.9415,168.31,168.21,6.183815]
[1729622006985,5.9415,168.31,168.22,10.84468488]
[1729622008590,22.2477,168.31,168.22,10.84468488]
[1729622009089,16.3062,168.31,168.22,10.84468488]
[1729622009687,22.2477,168.31,168.22,10.84468488]
[1729622013193,5.9423,168.29,168.22,10.84468488]
[1729622013386,5.9426,168.28,168.21,6.183815]
[1729622013774,5.9432,168.26,168.18,10.84468488]
[1729622016300,5.9417,168.3,168.2,10.84468488]
[1729622016879,5.9422,168.29,168.2,10.84468488]
[1729622018780,16.3062,168.31,168.2,10.84468488]
[1729622018980,5.9418,168.3,168.2,10.84468488]
[1729622019406,5.9418,168.3,168.22,10.84468488]
[1729622022079,5.9418,168.3,168.2,10.84468488]
[1729622024797,5.9421,168.29,168.2,10.84468488]
[1729622029815,16.3062,168.31,168.18,17.02483924]
[1729622029991,5.9429,168.27,168.18,17.02483924]
[1729622030491,5.9425,168.28,168.18,17.02483924]
[1729622031907,5.9417,168.3,168.18,17.02483924]
[1729622032114,5.943,168.27,168.18,17.02483924]
[1729622034327,5.9432,168.26,168.18,17.02483924]
[1729622034616,31.1604,168.31,168.18,17.02483924]
[1729622034806,5.9429,168.27,168.18,17.02483924]
[1729622041217,5.943,168.27,168.18,17.02483924]
[1729622047530,5.9425,168.28,168.2,10.84468488]
[1729622048706,22.2479,168.31,168.22,10.84468488]
[1729622048905,16.3062,168.31,168.24,10.84468488]
[1729622049217,15.0192,168.35,168.26,10.84468488]
[1729622049416,20.9595,168.35,168.26,10.84468488]
[1729622050014,5.9404,168.34,168.26,10.84468488]
[1729622050822,15.0192,168.35,168.28,10.84468488]
[1729622055634,20.9592,168.35,168.28,10.84468488]
[1729622057003,5.9407,168.33,168.24,23.776884]
[1729622057224,5.9407,168.33,168.25,10.84468488]
[1729622057423,5.941,168.32,168.25,10.84468488]
[1729622058127,5.9414,168.32,168.23,5.64655736]
[1729622058316,5.9416,168.31,168.24,10.84468488]
[1729622059137,6.0702,168.34,168.24,10.84468488]
[1729622059306,5.9419,168.3,168.24,10.84468488]
[1729622061930,5.9414,168.31,168.24,10.84468488]
[1729622062120,5.9417,168.3,168.24,10.84468488]
[1729622062525,5.9417,168.3,168.22,10.84468488]
[1729622062836,5.9417,168.3,168.21,6.1223]
[1729622063012,5.9417,168.3,168.22,10.84468488]
[1729622065242,5.9422,168.29,168.22,10.84468488]
[1729622065426,6.0702,168.34,168.22,10.84468488]
[1729622065629,5.9418,168.3,168.22,10.84468488]
[1729622068640,5.9425,168.28,168.22,10.84468488]
[1729622069947,5.9423,168.29,168.22,10.84468488]
[1729622071429,5.9424,168.28,168.22,10.84468488]
[1729622074824,5.9424,168.28,168.21,6.1223]
[1729622078623,14.8526,168.32,168.21,6.1223]
[1729622078841,5.9423,168.29,168.21,6.1223]
[1729622081649,5.9424,168.28,168.21,6.1223]
[1729622082328,21.9198,168.28,168.19,22.67742982]
[1729622083840,21.9198,168.28,168.19,11.83274494]
[1729622085829,5.9429,168.27,168.19,11.83274494]
[1729622089660,15.9774,168.28,168.2,10.84468488]
[1729622089959,15.6131,168.32,168.22,10.84468488]
[1729622090162,15.6131,168.32,168.24,10.84468488]
[1729622090329,15.6131,168.32,168.26,10.84468488]
[1729622090532,5.9399,168.36,168.26,10.84468488]
[1729622090737,15.6131,168.37,168.26,10.84468488]
[1729622090936,5.9401,168.35,168.26,10.84468488]
[1729622100049,15.6131,168.37,168.28,10.84468488]
[1729622100249,15.6131,168.37,168.3,10.84468488]
[1729622100557,5.9385,168.39,168.3,17.21568488]
[1729622100762,15.7887,168.41,168.3,17.21568488]
[1729622100763,5.939,168.38,168.3,17.21568488]
[1729622105370,15.7887,168.41,168.26,6.0488]
[1729622105571,14.8464,168.39,168.26,6.0488]
[1729622105779,5.9403,168.35,168.26,6.0488]
[1729622105963,5.9403,168.35,168.26,16.89348488]
[1729622106783,5.9397,168.36,168.27,23.776884]
[1729622108575,5.9401,168.35,168.27,23.776884]
[1729622109286,14.8464,168.39,168.26,6.0488]
[1729622109469,5.9408,168.33,168.26,6.0488]
[1729622110779,5.9417,168.31,168.23,6.19281566]
[1729622111083,5.9421,168.29,168.22,6.3179]
[1729622111464,14.8511,168.34,168.22,6.3179]
[1729622111465,15.2281,168.34,168.22,6.3179]
[1729622111655,5.9427,168.28,168.19,6.18150794]
[1729622112676,23.776884,168.31,168.19,6.18150794]
[1729622112872,5.9428,168.27,168.19,6.18150794]
[1729622113387,6.1343,168.29,168.19,6.18150794]
[1729622113562,5.9433,168.26,168.18,6.5227]
[1729622117289,5.9433,168.26,168.18,17.36738488]
[1729622121698,5.9429,168.27,168.18,17.36738488]
[1729622123407,5.944,168.24,168.16,17.02688123]
[1729622127093,5.9449,168.22,168.16,6.18219635]
[1729622127299,5.9449,168.22,168.14,6.2635]
[1729622127511,5.945,168.21,168.14,6.2635]
[1729622128685,5.945,168.21,168.13,10.84468488]
[1729622131587,5.945,168.21,168.15,10.84468488]
[1729622132391,16.3886,168.24,168.17,10.84468488]
[1729622132695,16.3886,168.24,168.19,10.84468488]
[1729622142596,6.1343,168.29,168.19,10.84468488]
[1729622142597,15.3155,168.28,168.19,10.84468488]
[1729622142797,5.9431,168.27,168.19,10.84468488]
[1729622143117,30.1718,168.28,168.18,10.84468488]
[1729622144100,5.9434,168.26,168.18,10.84468488]
[1729622145201,30.1718,168.28,168.18,10.84468488]
[1729622145518,5.9435,168.26,168.18,10.84468488]
[1729622147197,15.3155,168.28,168.18,10.84468488]
[1729622147403,5.9432,168.26,168.18,10.84468488]
[1729622147717,5.9435,168.25,168.18,10.84468488]
[1729622149094,15.3155,168.28,168.2,10.84468488]
[1729622149494,5.9431,168.27,168.2,10.84468488]
[1729622152525,5.9437,168.25,168.18,10.84468488]
[1729622154130,15.3155,168.28,168.18,10.84468488]
[1729622154304,5.943,168.27,168.18,10.84468488]
[1729622155007,5.943,168.27,168.2,10.84468488]
[1729622159249,15.3155,168.28,168.24,10.84468488]
[1729622159534,5.9414,168.31,168.24,10.84468488]
[1729622169343,15.3107,168.32,168.24,10.84468488]
[1729622169637,21.2518,168.32,168.24,10.84468488]
[1729622170330,21.2518,168.32,168.26,10.84468488]
[1729622170519,15.3107,168.32,168.26,10.84468488]
[1729622172550,5.9402,168.35,168.28,10.84468488]
[1729622175545,15.2445,168.36,168.3,10.84468488]
[1729622176045,5.9388,168.39,168.3,10.84468488]
[1729622176436,16.6418,168.4,168.32,10.84468488]
[1729622176831,16.6418,168.4,168.28,6.6346]
[1729622176832,16.6418,168.4,168.34,10.84468488]
[1729622178051,0.621189,168.42,168.38,10.84468488]
[1729622178251,0.621189,168.42,168.4,10.84468488]
[1729622178549,0.621189,168.42,168.41,23.776884]
[1729622178934,0.621189,168.42,168.41,40.434684]
[1729622179134,0.621189,168.42,168.41,51.27936888]
[1729622181748,0.621189,168.42,168.41,40.434684]
[1729622182044,0.621189,168.42,168.41,51.27936888]
[1729622190240,0.621189,168.42,168.41,23.776884]
[1729622190460,0.621189,168.42,168.38,22.4346]
[1729622190637,0.621189,168.42,168.38,10.84468488]
[1729622190839,0.621189,168.42,168.36,10.84468488]
[1729622192162,0.621189,168.42,168.37,23.776884]
[1729622192538,6.558789,168.42,168.29,6.1257]
[1729622192748,6.558789,168.42,168.33,10.84468488]
[1729622193758,5.9379,168.41,168.33,10.84468488]
[1729622194761,6.558689,168.42,168.33,10.84468488]
[1729622194948,0.621189,168.42,168.33,10.84468488]
[1729622195263,0.621189,168.42,168.35,10.84468488]
[1729622195590,0.621189,168.42,168.36,23.776884]
[1729622198574,0.621189,168.42,168.37,10.84468488]
[1729622202061,0.621189,168.42,168.35,34.62156888]
[1729622210885,0.621189,168.42,168.37,10.84468488]
[1729622215676,0.621189,168.42,168.39,10.84468488]
[1729622215872,0.621189,168.42,168.41,10.84468488]
[1729622216072,0.621189,168.42,168.41,34.62156888]
[1729622217068,0.621189,168.42,168.4,10.84468488]
[1729622217380,0.621189,168.42,168.4,34.62156888]
[1729622219696,0.621189,168.42,168.39,23.776884]
[1729622219870,0.621189,168.42,168.4,10.84468488]
[1729622220378,0.621189,168.42,168.39,23.776884]
[1729622220582,0.621189,168.42,168.39,10.84468488]
[1729622221197,0.621189,168.42,168.35,13.62030387]
[1729622221499,0.621189,168.42,168.36,10.84468488]
[1729622222381,6.558689,168.42,168.35,6.19708799]
[1729622222569,5.9387,168.39,168.35,6.19708799]
[1729622222773,5.9383,168.4,168.3,10.84468488]
[1729622222988,5.9383,168.4,168.3,17.04260918]
[1729622223577,5.9379,168.41,168.3,17.04260918]
[1729622223777,5.9379,168.41,168.32,10.84468488]
[1729622224284,5.9379,168.41,168.31,23.776884]
[1729622224892,5.9382,168.4,168.31,23.776884]
[1729622226275,6.558989,168.42,168.31,23.776884]
[1729622226697,0.621189,168.42,168.31,23.776884]
[1729622226996,5.9383,168.4,168.31,23.776884]
[1729622228269,5.9392,168.38,168.3,6.1979243]
[1729622228494,5.9386,168.39,168.3,6.1979243]
[1729622229270,5.9382,168.4,168.3,6.1979243]
[1729622229494,5.9385,168.4,168.3,6.1979243]
[1729622230196,5.9388,168.39,168.3,6.1979243]
[1729622230403,15.3973,168.38,168.3,6.1979243]
[1729622230894,5.9399,168.36,168.24,6.3425]
[1729622231205,5.9399,168.36,168.26,6.19800878]
[1729622231501,15.4973,168.38,168.26,6.19800878]
[1729622231671,5.9403,168.35,168.26,6.19800878]
[1729622231875,15.5222,168.32,168.22,15.6267]
[1729622232080,5.9414,168.31,168.2,19.12317324]
[1729622232280,5.9414,168.31,168.22,6.1924611]
[1729622234205,5.9425,168.28,168.22,6.1924611]
[1729622234388,43.776884,168.31,168.16,22.99507063]
[1729622237511,16.3333,168.3,168.19,23.776884]
[1729622237987,22.2753,168.3,168.19,23.776884]
[1729622238193,5.9423,168.29,168.19,23.776884]
[1729622238396,5.9424,168.28,168.17,6.18361849]
[1729622238797,5.9428,168.27,168.17,6.18361849]
[1729622239296,16.3333,168.3,168.18,86.94167063]
[1729622239486,16.3333,168.3,168.2,16.94167063]
[1729622239687,16.3333,168.3,168.21,23.776884]
[1729622241911,16.3333,168.3,168.22,16.94167063]
[1729622242686,16.3333,168.3,168.23,23.776884]
[1729622244380,16.3333,168.3,168.25,10.85043326]
[1729622245813,21.5321,168.34,168.25,10.85043326]
[1729622246020,15.5918,168.34,168.29,10.85043326]
[1729622246513,15.5918,168.38,168.31,10.85043326]
[1729622247109,21.5308,168.38,168.31,10.85043326]
[1729622247314,15.5918,168.38,168.31,10.85043326]
[1729622247510,21.5308,168.38,168.29,10.85043326]
[1729622249705,15.5918,168.38,168.3,23.776884]
[1729622249891,15.5918,168.38,168.31,10.85043326]
[1729622251314,21.5307,168.38,168.29,10.85043326]
[1729622252509,5.9393,168.37,168.26,23.776884]
[1729622252720,21.5308,168.38,168.29,10.85043326]
[1729622253206,15.5918,168.38,168.25,70.0]
[1729622253417,21.531,168.38,168.29,10.85043326]
[1729622258131,15.5918,168.38,168.31,10.85043326]
[1729622260110,5.9393,168.37,168.28,10.85043326]
[1729622261413,15.5918,168.38,168.3,10.85043326]
[1729622261607,15.5918,168.38,168.32,10.85043326]
[1729622266241,5.9393,168.37,168.28,7.42321588]
[1729622266532,21.5308,168.38,168.26,17.03762032]
[1729622267404,21.5308,168.38,168.28,10.85043326]
[1729622267709,15.5918,168.38,168.31,23.776884]
[1729622267909,15.5918,168.38,168.32,10.85043326]
[1729622268614,16.908189,168.42,168.33,23.776884]
[1729622269028,22.845789,168.42,168.33,23.776884]
[1729622271102,16.908189,168.42,168.33,23.776884]
[1729622275834,5.939,168.38,168.26,86.9397573]
[1729622276135,5.939,168.38,168.26,93.12837359]
[1729622277331,5.939,168.38,168.27,23.776884]
[1729622278223,5.9393,168.37,168.27,23.776884]
[1729622280934,5.939,168.38,168.27,23.776884]
[1729622283120,31.752489,168.42,168.27,23.776884]
[1729622283321,5.9393,168.37,168.27,23.776884]
[1729622284543,5.9381,168.41,168.31,23.776884]
[1729622285337,0.621189,168.42,168.36,23.776884]
[1729622289036,0.621189,168.42,168.38,23.776884]
[1729622289249,0.621189,168.42,168.39,16.9397573]
[1729622289418,0.621189,168.42,168.4,23.776884]
[1729622289836,0.621189,168.42,168.41,40.7166413]
[1729622290217,0.621189,168.42,168.41,110.7166413]
[1729622293418,0.621189,168.42,168.41,40.7166413]
[1729622295232,0.621189,168.42,168.41,110.7166413]
[1729622296517,0.621189,168.42,168.38,2.17042988]
[1729622296713,0.621189,168.42,168.38,20.0]
[1729622296930,0.621189,168.42,168.35,92.7187]
[1729622297153,0.621189,168.42,168.35,22.7187]
[1729622298122,16.463989,168.42,168.33,76.18030232]
[1729622298325,22.401489,168.42,168.33,6.18030232]
[1729622299944,16.463989,168.42,168.33,6.18030232]
[1729622300458,16.463989,168.42,168.34,23.776884]
[1729622300737,16.463989,168.42,168.34,40.7166413]
[1729622301844,0.621189,168.42,168.36,23.776884]
[1729622302534,0.621189,168.42,168.36,40.7166413]
[1729622306626,0.621189,168.42,168.4,23.776884]
[1729622310628,0.621189,168.42,168.38,23.776884]
[1729622311920,0.621189,168.42,168.35,23.11824034]
[1729622314444,0.621189,168.42,168.36,23.776884]
[1729622317235,0.621189,168.42,168.37,16.9397573]
[1729622317442,0.621189,168.42,168.38,23.776884]
[1729622320253,0.621189,168.42,168.39,10.83320407]
[1729622330841,0.621189,168.42,168.38,23.776884]
[1729622331048,0.621189,168.42,168.38,34.61008807]
[1729622337539,0.621189,168.42,168.38,23.776884]
[1729622337741,0.621189,168.42,168.38,34.61008807]
[1729622341462,0.621189,168.42,168.35,6.17964969]
[1729622341664,16.6089,168.4,168.35,6.17964969]
[1729622341841,22.5472,168.4,168.35,6.17964969]
[1729622342050,22.5472,168.4,168.31,10.83320407]
[1729622343360,22.5472,168.4,168.32,23.776884]
[1729622345347,16.6089,168.4,168.32,23.776884]
[1729622345668,16.6089,168.4,168.31,34.61008807]
[1729622345867,5.9387,168.39,168.31,34.61008807]
[1729622346665,22.5472,168.4,168.31,34.61008807]
[1729622346867,16.05945159,168.4,168.34,23.776884]
[1729622347466,16.05945159,168.4,168.36,10.83320407]
[1729622348364,0.621189,168.42,168.37,23.776884]
[1729622352585,0.621189,168.42,168.37,23.776884]
[1729622352779,0.621189,168.42,168.38,10.83320407]
[1729622353567,0.621189,168.42,168.37,23.776884]
[1729622356093,0.621189,168.42,168.38,10.83320407]
[1729622356293,0.621189,168.42,168.39,23.776884]
[1729622360294,0.621189,168.42,168.37,23.776884]
[1729622360990,0.621189,168.42,168.36,10.83320407]
[1729622362383,0.621189,168.42,168.37,23.776884]
[1729622362784,0.621189,168.42,168.33,30.85575403]
[1729622362997,0.621189,168.42,168.36,10.83320407]
[1729622365798,0.621189,168.42,168.34,23.776884]
[1729622366095,0.621189,168.42,168.36,23.776884]
[1729622372100,0.621189,168.42,168.38,23.776884]
[1729622373089,0.621189,168.42,168.34,6.17821263]
[1729622373292,0.621189,168.42,168.35,23.776884]
[1729622373483,0.621189,168.42,168.35,34.61008807]
[1729622379380,0.621189,168.42,168.34,6.17821263]
[1729622379581,15.5683,168.41,168.34,6.17821263]
[1729622379898,5.939,168.38,168.29,17.29400407]
[1729622380106,5.939,168.38,168.29,23.47232503]
[1729622380482,5.9386,168.39,168.29,23.47232503]
[1729622381505,5.9386,168.39,168.31,10.83320407]
[1729622382707,15.5683,168.41,168.3,34.61008807]
[1729622382910,5.9389,168.39,168.3,34.61008807]
[1729622383207,5.939,168.38,168.3,34.61008807]
[1729622388018,5.939,168.38,168.3,10.83320407]
[1729622388507,5.9393,168.37,168.3,10.83320407]
[1729622393999,5.9393,168.37,168.29,12.63912096]
[1729622394525,15.5683,168.41,168.29,12.63912096]
[1729622394526,15.5683,168.41,168.29,6.17832096]
[1729622394694,15.3044,168.35,168.29,6.17832096]
[1729622394901,5.9404,168.34,168.25,17.28520407]
[1729622395111,15.3044,168.35,168.25,17.28520407]
[1729622395305,15.3044,168.35,168.25,10.83320407]
[1729622395595,5.9407,168.33,168.25,10.83320407]
[1729622405524,5.9407,168.33,168.24,6.17273588]
[1729622405525,6.2753,168.34,168.24,6.17273588]
[1729622405721,15.4688,168.33,168.19,10.83320407]
[1729622405923,5.9427,168.28,168.19,10.83320407]
[1729622407124,5.9427,168.28,168.2,23.776884]
[1729622407524,15.2702,168.26,168.18,17.00724552]
[1729622407829,15.2702,168.26,168.18,6.17404145]
[1729622408032,15.2702,168.26,168.15,10.83320407]
[1729622408234,5.9443,168.23,168.15,10.83320407]
[1729622410834,5.9443,168.23,168.14,6.17467749]
[1729622411015,5.9443,168.23,168.14,17.00788156]
[1729622411728,15.2702,168.26,168.14,17.00788156]
[1729622412023,5.9444,168.23,168.14,6.17467749]
[1729622412334,5.9444,168.23,168.15,10.83320407]
[1729622413117,5.9438,168.25,168.15,10.83320407]
[1729622413433,15.2702,168.26,168.19,10.83320407]
[1729622413632,15.2702,168.26,168.16,7.42321588]
[1729622413839,5.9443,168.23,168.14,6.17467749]
[1729622414226,21.5659,168.26,168.14,6.17467749]
[1729622414517,5.9447,168.22,168.13,17.30410407]
[1729622414728,5.9447,168.22,168.13,6.4709]
[1729622414920,5.9447,168.22,168.13,17.30410407]
[1729622418534,21.5659,168.26,168.11,13.31399412]
[1729622418535,5.9456,168.2,168.11,13.31399412]
[1729622418733,5.9456,168.2,168.11,6.17780379]
[1729622418734,6.0286,168.2,168.11,6.17780379]
[1729622419049,23.776884,168.19,168.07,10.83320407]
[1729622419342,5.9469,168.16,168.07,10.83320407]
[1729622419930,5.9462,168.18,168.09,10.83320407]
[1729622420737,5.9466,168.17,168.05,6.1781187]
[1729622420926,5.9466,168.17,168.09,10.83320407]
[1729622421330,6.0286,168.2,168.07,10.83320407]
[1729622421537,5.9471,168.15,168.07,10.83320407]
[1729622423742,5.9471,168.15,168.05,6.1781187]
[1729622424037,5.9464,168.17,168.07,10.83320407]
[1729622424240,11.9739,168.2,168.09,10.83320407]
[1729622424442,6.0286,168.2,168.09,10.83320407]
[1729622424768,5.9457,168.19,168.09,10.83320407]
[1729622426157,22.4532,168.21,168.11,10.83320407]
[1729622426451,16.508,168.21,168.13,10.83320407]
[1729622427546,22.4529,168.21,168.13,10.83320407]
[1729622430550,16.508,168.21,168.13,10.83320407]
[1729622434133,5.9454,168.2,168.11,6.1328]
[1729622434349,5.9459,168.19,168.09,10.83320407]
[1729622434552,5.946,168.18,168.09,10.83320407]
[1729622440139,16.508,168.21,168.11,10.83320407]
[1729622440454,16.508,168.21,168.15,10.83320407]
[1729622455174,16.508,168.21,168.1,16.5655]
[1729622455175,5.9456,168.19,168.1,16.5655]
[1729622455359,5.9456,168.19,168.1,27.39870407]
[1729622457966,5.9456,168.19,168.12,10.83320407]
[1729622458564,5.9453,168.2,168.12,10.83320407]
[1729622460076,16.508,168.21,168.12,10.83320407]
[1729622460261,16.508,168.21,168.14,10.83320407]
[1729622460462,22.453,168.21,168.14,10.83320407]
[1729622462082,5.9463,168.17,168.1,16.5655]
[1729622462284,5.9466,168.17,168.09,6.17528904]
[1729622462577,5.9469,168.16,168.07,6.1328]
[1729622463486,14.8632,168.2,168.08,10.83320407]
[1729622463671,5.9464,168.17,168.08,10.83320407]
[1729622469689,5.9461,168.18,168.1,10.83320407]
[1729622469989,23.776884,168.19,168.07,6.1328]
[1729622470168,5.947,168.16,168.07,6.1328]
[1729622470366,5.9473,168.15,168.07,16.96600407]
[1729622472391,5.9468,168.16,168.07,16.96600407]
[1729622472972,5.9468,168.16,168.09,10.83320407]
[1729622477477,14.965,168.18,168.07,16.96600407]
[1729622477775,0.1,168.15,168.03,6.6101]
[1729622477974,15.2443,168.11,168.03,17.44330407]
[1729622479584,21.193,168.11,168.03,17.44330407]
[1729622480398,15.2443,168.11,168.05,10.83320407]
[1729622480993,21.0594,168.16,168.07,10.83320407]
[1729622481395,5.9475,168.14,168.03,6.6101]
[1729622481607,15.1126,168.16,168.08,10.83320407]
[1729622482095,21.0593,168.16,168.08,10.83320407]
[1729622482704,15.1126,168.16,168.08,10.83320407]
[1729622483203,21.0595,168.16,168.08,10.83320407]
[1729622484902,15.1126,168.16,168.08,10.83320407]
[1729622485108,5.9471,168.15,168.08,10.83320407]
[1729622485303,15.1126,168.16,168.08,10.83320407]
[1729622485493,21.0593,168.16,168.08,10.83320407]
[1729622485880,23.876884,168.12,168.01,6.17090509]
[1729622486086,23.876884,168.12,168.0,10.83320407]
[1729622486087,5.9497,168.08,168.0,10.83320407]
[1729622486299,5.9499,168.07,168.0,10.83320407]
[1729622486502,23.776884,168.1,167.98,10.83320407]
[1729622486706,5.9487,168.11,168.0,10.83320407]
[1729622486893,5.9488,168.1,168.0,10.83320407]
[1729622487998,15.9855,168.13,168.04,10.83320407]
[1729622488186,21.9332,168.13,168.04,10.83320407]
[1729622490201,23.776884,168.12,167.98,20.0]
[1729622490407,5.9485,168.11,168.0,16.99978752]
[1729622490792,15.9855,168.13,167.98,16.99978752]
[1729622490793,23.776884,168.12,167.98,16.99978752]
[1729622491196,5.95,168.07,167.97,6.0617]
[1729622492414,5.9504,168.06,167.97,6.0617]
[1729622493394,5.9499,168.07,167.97,6.0617]
[1729622495412,5.9506,168.05,167.97,6.0617]
[1729622496694,16.5618,168.07,167.97,6.0617]
[1729622496925,5.9509,168.04,167.97,6.0617]
[1729622497095,16.5618,168.07,167.88,0.1]
[1729622497096,6.0502,168.06,167.92,23.10268752]
[1729622497424,22.3029,168.01,167.92,6.1029]
[1729622500221,29.729484,168.0,167.89,6.17221886]
[1729622500916,5.9526,168.0,167.89,6.17221886]
[1729622501119,5.9526,168.0,167.89,23.17200638]
[1729622501713,22.3027,168.01,167.9,23.776884]
[1729622501917,16.3506,168.01,167.89,23.17200638]
[1729622502099,5.9525,168.0,167.89,23.17200638]
[1729622505011,16.3506,168.01,167.89,23.17200638]
[1729622505317,22.3027,168.01,167.89,23.17200638]
[1729622506717,22.3027,168.01,167.9,23.776884]
[1729622510532,22.3027,168.01,167.91,10.89478694]
[1729622512943,21.7518,168.05,167.95,10.89478694]
[1729622513241,15.3466,168.05,168.01,10.89478694]
[1729622513837,15.3466,168.05,167.95,23.776884]
[1729622514012,15.3466,168.05,167.94,6.1035]
[1729622514217,15.3466,168.05,167.98,10.89478694]
[1729622514424,15.3466,168.05,167.96,17.00939107]
[1729622515337,21.2972,168.05,167.96,17.00939107]
[1729622517134,15.3466,168.05,167.96,17.00939107]
[1729622517441,5.951,168.04,167.94,23.11289107]
[1729622518932,5.9519,168.02,167.94,23.11289107]
[1729622519143,5.9531,167.98,167.9,12.68343694]
[1729622519637,5.9531,167.98,167.88,18.5773227]
[1729622519638,5.953,167.98,167.88,18.5773227]
[1729622519823,22.4485,167.99,167.88,18.5773227]
[1729622520015,16.4957,167.99,167.89,17.00939107]
[1729622520214,16.4957,167.99,167.91,17.00939107]
[1729622523737,16.4538,168.03,167.91,17.00939107]
[1729622523937,16.4538,168.03,167.93,23.31719107]
[1729622524832,22.4053,168.03,167.93,23.31719107]
[1729622527819,16.4538,168.03,167.93,23.31719107]
[1729622529726,16.4538,168.03,167.94,23.776884]
[1729622529931,16.4538,168.03,167.95,17.00939107]
[1729622534339,16.4538,168.03,167.98,10.88698132]
[1729622535630,22.3932,168.07,167.98,10.88698132]
[1729622535837,16.4432,168.07,167.98,10.88698132]
[1729622536051,5.9502,168.06,167.98,10.88698132]
[1729622538040,5.9506,168.05,167.98,10.88698132]
[1729622538243,5.9506,168.05,167.97,10.88698132]
[1729622539462,16.4432,168.07,167.94,39.470484]
[1729622539672,17.95,168.12,167.94,39.470484]
[1729622539673,15.5336,168.12,168.04,10.88698132]
[1729622540157,5.9505,168.06,168.0,6.3998]
[1729622540361,5.9505,168.06,167.97,10.88698132]
[1729622540538,5.9505,168.06,167.96,23.776884]
[1729622541640,5.9505,168.06,167.97,10.88698132]
[1729622541841,5.9496,168.08,167.99,10.88698132]
[1729622542043,22.0878,168.1,167.99,10.88698132]
[1729622542242,5.9493,168.09,167.97,17.0056045]
[1729622542447,5.9493,168.09,167.98,23.776884]
[1729622544349,22.0878,168.1,167.98,23.776884]
[1729622544870,5.9494,168.09,167.98,23.776884]
[1729622548256,5.9491,168.09,167.97,23.776884]
[1729622549161,22.0878,168.1,167.97,23.776884]
[1729622549369,5.9496,168.08,167.97,23.776884]
[1729622549968,23.776884,168.09,167.95,11.4550287]
[1729622550264,5.9513,168.03,167.95,11.4550287]
[1729622550451,14.8738,168.08,167.95,11.4550287]
[1729622550653,5.951,168.04,167.95,11.4550287]
[1729622551359,23.776884,168.09,167.95,11.4550287]
[1729622551360,5.9505,168.06,167.95,11.4550287]
[1729622551949,5.9507,168.05,167.95,11.4550287]
[1729622554345,5.9508,168.05,167.95,11.4550287]
[1729622556672,38.650284,168.09,167.96,23.776884]
[1729622558168,5.9503,168.06,167.96,23.776884]
[1729622558761,22.0878,168.1,167.96,23.776884]
[1729622558953,5.9493,168.09,167.96,23.776884]
[1729622559156,22.0878,168.1,167.96,23.776884]
[1729622559356,5.9496,168.08,167.96,23.776884]
[1729622562271,5.9496,168.08,167.97,10.88692299]
[1729622562566,5.9496,168.08,167.98,23.776884]
[1729622570064,22.0878,168.1,167.98,23.776884]
[1729622570065,22.0878,168.1,167.99,10.88692299]
[1729622570376,5.9492,168.09,167.99,10.88692299]
[1729622574770,5.9491,168.09,167.99,10.88692299]
[1729622576387,5.9495,168.08,167.99,10.88692299]
[1729622581666,22.0878,168.1,167.95,17.6116986]
[1729622581867,23.776884,168.09,167.95,17.6116986]
[1729622582167,23.776884,168.09,167.91,70.0]
[1729622582168,16.2919,168.02,167.91,6.5636]
[1729622582386,16.2919,168.02,167.87,70.0]
[1729622582387,5.953,167.99,167.88,10.88692299]
[1729622582566,5.953,167.99,167.88,17.04103698]
[1729622582764,5.953,167.99,167.88,19.21561218]
[1729622583686,5.953,167.99,167.9,10.88692299]
[1729622584392,5.9535,167.97,167.88,8.32868919]
[1729622584694,5.9534,167.98,167.88,17.04103698]
[1729622585397,23.776884,168.01,167.88,17.04103698]
[1729622585691,5.9531,167.98,167.88,17.04103698]